bitfinex-derivatives/quotes_BTCF0:USTF0_20250928
["timestamp","ask_amount","ask_price","bid_price","bid_amount"]
[1759089270097,1.65443145,110400.0,110390.0,0.46146437]
[1759089270302,1.99295522,110400.0,110390.0,0.46146437]
[1759089271211,1.17455522,110400.0,110390.0,0.46146437]
[1759089271410,1.99295522,110400.0,110390.0,0.46146437]
[1759089271911,1.17455522,110400.0,110390.0,0.46146437]
[1759089272113,1.63215522,110400.0,110390.0,0.46146437]
[1759089273915,0.81375522,110400.0,110390.0,0.46146437]
[1759089274111,1.63215522,110400.0,110390.0,0.46146437]
[1759089275513,0.81375522,110400.0,110390.0,0.1229406]
[1759089275713,1.63215522,110400.0,110390.0,0.1229406]
[1759089276217,0.81375522,110400.0,110390.0,0.1229406]
[1759089276418,1.63211522,110400.0,110390.0,0.1229406]
[1759089277409,0.13670768,110400.0,110390.0,0.1229406]
[1759089277619,1.63211522,110400.0,110390.0,0.1229406]
[1759089278418,1.63211522,110400.0,110390.0,0.46146437]
[1759089280518,1.63211522,110400.0,110390.0,0.1229406]
[1759089294932,1.72266322,110400.0,110390.0,0.1229406]
[1759089295128,2.08346322,110400.0,110390.0,0.1229462]
[1759089298131,2.08346322,110400.0,110390.0,0.1005562]
[1759089299131,2.08346322,110400.0,110390.0,0.1233962]
[1759089302539,1.99291522,110400.0,110390.0,0.1233962]
[1759089302739,1.17455522,110400.0,110390.0,0.1233962]
[1759089302941,1.99287522,110400.0,110390.0,0.1233962]
[1759089313346,2.08342322,110400.0,110390.0,0.1233962]
[1759089315558,2.08642322,110400.0,110390.0,0.1173962]
[1759089316356,2.08842322,110400.0,110390.0,0.1133962]
[1759089325062,1.63699522,110400.0,110390.0,0.1133962]
[1759089325259,1.99779522,110400.0,110390.0,0.1133962]
[1759089325660,1.17955522,110400.0,110390.0,0.1133962]
[1759089325962,1.99779522,110400.0,110390.0,0.1133962]
[1759089326362,1.65926682,110400.0,110390.0,0.1133962]
[1759089328965,1.29846682,110400.0,110390.0,0.1133962]
[1759089331063,1.65926682,110400.0,110390.0,0.1133962]
[1759089338372,0.48022682,110400.0,110390.0,0.1133962]
[1759089338571,1.29842682,110400.0,110390.0,0.1133962]
[1759089342067,1.38897482,110400.0,110390.0,0.0905562]
[1759089342269,0.1272562,110390.0,110380.0,0.93034336]
[1759089342473,0.75780797,110390.0,110380.0,0.11218336]
[1759089343567,0.75980797,110390.0,110380.0,0.11218336]
[1759089344172,0.76280797,110390.0,110380.0,0.11218336]
[1759089346774,0.76280797,110390.0,110380.0,0.09066336]
[1759089348775,0.85336417,110390.0,110380.0,0.09066336]
[1759089351378,1.67152417,110390.0,110380.0,0.09066336]
[1759089351674,0.1254244,110380.0,110370.0,0.0905695]
[1759089351866,0.84653237,110380.0,110370.0,0.0905695]
[1759089352671,0.84661048,110380.0,110370.0,0.0905695]
[1759089352879,1.66477048,110380.0,110370.0,0.0905695]
[1759089354175,1.66577048,110380.0,110370.0,0.0905695]
[1759089354475,0.1254346,110370.0,110360.0,0.112825]
[1759089354680,0.82475374,110370.0,110360.0,0.112825]
[1759089354877,1.16327288,110370.0,110350.0,0.0922567]
[1759089355082,0.82476004,110360.0,110350.0,0.9326724]
[1759089355281,0.8248281,110360.0,110350.0,0.1145124]
[1759089355683,0.7342472,110360.0,110350.0,0.1145124]
[1759089355892,0.7332472,110360.0,110350.0,0.1145124]
[1759089356894,0.7332472,110360.0,110350.0,0.1128391]
[1759089357493,0.7332472,110360.0,110350.0,0.1158391]
[1759089357693,0.7332472,110360.0,110350.0,0.1178391]
[1759089359595,0.80520829,110360.0,110350.0,0.1178391]
[1759089362199,0.09359915,110360.0,110350.0,0.4921291]
[1759089362398,0.09359915,110360.0,110350.0,1.23064824]
[1759089370702,0.59359915,110360.0,110350.0,1.23064824]
[1759089372402,0.59359915,110360.0,110350.0,0.8921291]
[1759089379209,0.59359915,110360.0,110350.0,0.4921291]
[1759089379414,0.59359915,110360.0,110350.0,1.64896824]
[1759089379918,0.59359915,110360.0,110350.0,1.3104491]
[1759089382217,0.61535102,110360.0,110350.0,1.3104491]
[1759089382418,0.59359915,110360.0,110350.0,1.3104491]
[1759089384521,0.59359915,110360.0,110350.0,1.64896824]
[1759089384825,0.50006806,110360.0,110350.0,2.04896824]
[1759089386429,0.50006806,110360.0,110350.0,2.04910023]
[1759089386924,0.52130806,110360.0,110350.0,2.04910023]
[1759089393534,0.52130806,110360.0,110350.0,2.11435216]
[1759089396537,0.52130806,110360.0,110350.0,1.77570103]
[1759089396743,0.52130806,110360.0,110350.0,2.11435216]
[1759089399444,0.52130806,110360.0,110350.0,1.71435216]
[1759089400044,0.52130806,110360.0,110350.0,0.89603216]
[1759089400244,0.52130806,110360.0,110350.0,1.71431216]
[1759089402145,0.52130806,110360.0,110350.0,0.89603216]
[1759089402342,0.52130806,110360.0,110350.0,1.71431216]
[1759089402545,0.52130806,110360.0,110350.0,0.89603216]
[1759089402743,0.52130806,110360.0,110350.0,1.71431216]
[1759089403546,0.52130806,110360.0,110350.0,1.35351216]
[1759089403748,0.52130806,110360.0,110350.0,1.71431216]
[1759089406141,0.52130806,110360.0,110350.0,1.37566103]
[1759089406340,0.52130806,110360.0,110350.0,1.71431216]
[1759089408153,0.52130806,110360.0,110350.0,0.89603216]
[1759089408452,0.52130806,110360.0,110350.0,1.71431216]
[1759089408648,0.52130806,110360.0,110350.0,0.89603216]
[1759089408952,0.52130806,110360.0,110350.0,1.71431216]
[1759089415752,0.54307363,110360.0,110350.0,1.64906023]
[1759089419960,0.54307363,110360.0,110350.0,0.83078023]
[1759089420265,0.89552476,110360.0,110350.0,1.64902023]
[1759089422368,0.55687363,110360.0,110350.0,1.64902023]
[1759089422563,0.54307363,110360.0,110350.0,1.64902023]
[1759089422768,0.52130806,110360.0,110350.0,1.71427216]
[1759089431276,0.52130806,110360.0,110350.0,1.37562103]
[1759089431477,0.52130806,110360.0,110350.0,1.71427216]
[1759089434383,0.52130806,110360.0,110350.0,1.35347216]
[1759089434672,0.52130806,110360.0,110350.0,1.71427216]
[1759089448182,0.52130806,110360.0,110350.0,1.71427759]
[1759089449284,0.52130806,110360.0,110350.0,1.64902566]
[1759089455993,0.52130806,110360.0,110350.0,1.28822566]
[1759089456194,0.52130806,110360.0,110350.0,1.64902566]
[1759089459193,0.52130806,110360.0,110350.0,1.71427759]
[1759089461597,0.52130806,110360.0,110350.0,1.71419759]
[1759089470809,0.52130806,110360.0,110350.0,1.71415759]
[1759089474704,0.52130806,110360.0,110350.0,1.35335759]
[1759089475005,0.52130806,110360.0,110350.0,1.71415759]
[1759089481908,0.52130806,110360.0,110350.0,1.64890566]
[1759089488308,0.52130806,110360.0,110350.0,1.3102491]
[1759089488610,0.52130806,110360.0,110350.0,1.64890566]
[1759089500016,0.52130806,110360.0,110350.0,1.71415759]
[1759089505919,0.50006806,110360.0,110350.0,1.71415759]
[1759089506119,0.50006806,110360.0,110350.0,2.11415759]
[1759089506314,0.50006806,110360.0,110350.0,2.04890566]
[1759089507521,0.50006806,110360.0,110350.0,1.23078566]
[1759089507723,0.50006806,110360.0,110350.0,2.04874566]
[1759089508423,0.50006806,110360.0,110350.0,2.38722728]
[1759089510223,0.50006806,110360.0,110350.0,2.45223095]
[1759089511919,0.50006806,110360.0,110350.0,1.63427095]
[1759089512222,0.50006806,110360.0,110350.0,2.45219095]
[1759089515426,0.50006806,110360.0,110350.0,1.63427095]
[1759089515620,0.50006806,110360.0,110350.0,2.45219095]
[1759089516324,0.50006806,110360.0,110350.0,2.81299095]
[1759089518025,0.50006806,110360.0,110350.0,2.81295095]
[1759089519526,0.50006806,110360.0,110350.0,2.41295095]
[1759089521936,0.50006806,110360.0,110350.0,1.69135095]
[1759089522133,0.50006806,110360.0,110350.0,2.41295095]
[1759089523348,0.50006806,110360.0,110350.0,1.69135095]
[1759089523647,0.50006806,110360.0,110350.0,2.41295095]
[1759089526454,0.50006806,110360.0,110350.0,1.69135095]
[1759089526642,0.50006806,110360.0,110350.0,2.41295095]
[1759089529148,0.04537787,110360.0,110350.0,2.81295095]
[1759089529353,0.04537787,110360.0,110350.0,2.74794728]
[1759089530254,0.04541845,110360.0,110350.0,2.74794728]
[1759089531348,0.04541845,110360.0,110350.0,2.82925815]
[1759089532852,0.04541845,110360.0,110350.0,2.74794728]
[1759089534359,0.04541845,110360.0,110350.0,2.82925815]
[1759089536652,0.04541845,110360.0,110350.0,2.01137815]
[1759089536653,0.01041845,110360.0,110350.0,2.01137815]
[1759089536859,0.37553909,110390.0,110380.0,0.1133944]
[1759089537059,0.39727741,110390.0,110380.0,1.63052349]
[1759089538055,0.39827741,110390.0,110380.0,1.63052349]
[1759089540855,0.39827741,110390.0,110380.0,0.81276349]
[1759089541055,0.39827741,110390.0,110380.0,1.63052349]
[1759089541360,0.39827741,110390.0,110380.0,0.81276349]
[1759089541561,0.39827741,110390.0,110380.0,1.63052349]
[1759089541859,0.39827741,110390.0,110380.0,0.81276349]
[1759089542355,0.39827741,110390.0,110380.0,1.63052349]
[1759089543860,0.39827741,110390.0,110380.0,0.81276349]
[1759089544061,0.39827741,110390.0,110380.0,1.63052349]
[1759089549363,0.39827741,110390.0,110380.0,1.26972349]
[1759089556972,0.39827741,110390.0,110380.0,0.9311544]
[1759089557160,0.39827741,110390.0,110380.0,1.26972349]
[1759089557558,0.39827741,110390.0,110380.0,1.63052349]
[1759089565577,0.39827741,110390.0,110380.0,1.26972349]
[1759089565770,0.39827741,110390.0,110380.0,1.63052349]
[1759089568267,0.39824313,110390.0,110380.0,1.2919544]
[1759089576282,0.39824313,110390.0,110380.0,0.9311544]
[1759089576485,0.39824313,110390.0,110380.0,1.2919544]
[1759089579686,0.39824313,110390.0,110380.0,0.9311544]
[1759089579988,0.39824313,110390.0,110380.0,1.2919544]
[1759089581184,0.05970832,110390.0,110380.0,1.2919544]
[1759089581587,0.05970832,110390.0,110380.0,1.63048921]
[1759089582992,0.05970832,110390.0,110380.0,2.03048921]
[1759089585497,0.05970832,110390.0,110380.0,1.21272921]
[1759089585796,0.05970832,110390.0,110380.0,2.03032921]
[1759089586497,0.05970832,110390.0,110380.0,1.21272921]
[1759089586700,0.05970832,110390.0,110380.0,2.03032921]
[1759089587597,0.05970832,110390.0,110380.0,1.21272921]
[1759089587895,0.05970832,110390.0,110380.0,2.03032921]
[1759089589093,0.03797,110390.0,110380.0,2.03032921]
[1759089590293,0.05961772,110390.0,110380.0,2.03032921]
[1759089590498,0.05961772,110390.0,110380.0,1.21272921]
[1759089590693,0.05961772,110390.0,110380.0,2.03028921]
[1759089591099,0.03797,110390.0,110380.0,2.03028921]
[1759089599212,0.05959426,110390.0,110380.0,2.03028921]
[1759089599516,0.02262426,110390.0,110380.0,2.03028921]
[1759089600514,0.001,110390.0,110380.0,1.63028921]
[1759089600919,0.02262423,110390.0,110380.0,1.63028921]
[1759089601116,0.001,110390.0,110380.0,1.63028921]
[1759089601515,0.001,110390.0,110380.0,2.03028921]
[1759089601821,0.001,110390.0,110380.0,2.45608079]
[1759089602916,0.01346,110410.0,110390.0,0.090554]
[1759089603122,0.03585,110410.0,110400.0,1.62892281]
[1759089603422,0.05746003,110410.0,110400.0,1.62892281]
[1759089603722,0.06633537,110410.0,110400.0,1.62892281]
[1759089605422,0.04472534,110410.0,110400.0,1.62892281]
[1759089605923,0.04572534,110410.0,110400.0,1.62892281]
[1759089606122,0.11679915,110410.0,110400.0,1.62892281]
[1759089607420,0.11679915,110410.0,110400.0,1.62884281]
[1759089608820,0.03685,110410.0,110400.0,1.62884281]
[1759089609627,0.04599275,110410.0,110400.0,1.62884281]
[1759089609815,0.04599275,110410.0,110400.0,0.472868]
[1759089610127,0.38452756,110410.0,110400.0,1.290308]
[1759089610320,0.45531905,110410.0,110400.0,1.290308]
[1759089611023,0.38452756,110410.0,110400.0,1.290308]
[1759089613632,0.37538481,110410.0,110400.0,1.290308]
[1759089622027,0.37538481,110410.0,110400.0,1.290348]
[1759089623335,0.37538481,110410.0,110400.0,0.472868]
[1759089623633,0.37538481,110410.0,110400.0,1.290348]
[1759089630233,0.37527483,110410.0,110400.0,1.62877283]
[1759089631537,0.39688458,110410.0,110400.0,1.62877283]
[1759089631737,0.37527483,110410.0,110400.0,1.62877283]
[1759089632140,0.39688458,110410.0,110400.0,0.472868]
[1759089632341,0.39688458,110410.0,110400.0,1.62865283]
[1759089632541,0.39688458,110410.0,110400.0,0.45049283]
[1759089632737,0.39688458,110410.0,110400.0,1.26785283]
[1759089633041,0.39688458,110410.0,110400.0,0.45049283]
[1759089633241,0.39688458,110410.0,110400.0,1.26785283]
[1759089633537,0.39688458,110410.0,110400.0,0.112068]
[1759089633742,0.39688458,110410.0,110400.0,1.26785283]
[1759089635042,0.39688458,110410.0,110400.0,0.112068]
[1759089635247,0.39688458,110410.0,110400.0,1.26785283]
[1759089640948,0.39688458,110410.0,110400.0,1.62865283]
[1759089643246,0.39688458,110410.0,110400.0,1.26785283]
[1759089643746,0.39688458,110410.0,110400.0,0.929428]
[1759089643946,0.39688458,110410.0,110400.0,1.26785283]
[1759089648044,0.39688458,110410.0,110400.0,0.112068]
[1759089648245,0.39688458,110410.0,110400.0,0.929428]
[1759089651751,0.05845975,110410.0,110400.0,0.929428]
[1759089651950,0.39688458,110410.0,110400.0,0.929428]
[1759089652147,0.39688458,110410.0,110400.0,1.26785283]
[1759089659449,0.3968684,110410.0,110400.0,1.26785283]
[1759089659952,0.4874082,110410.0,110400.0,1.26785283]
[1759089664758,0.3968684,110410.0,110400.0,1.26785283]
[1759089666158,0.05844357,110410.0,110400.0,1.26785283]
[1759089666455,0.3968684,110410.0,110400.0,1.26785283]
[1759089667758,0.05844357,110410.0,110400.0,1.26785283]
[1759089668059,0.3968684,110410.0,110400.0,1.26785283]
[1759089675662,0.3968684,110410.0,110400.0,0.929428]
[1759089675960,0.3968684,110410.0,110400.0,1.26785283]
[1759089677458,0.3968684,110410.0,110400.0,0.45049283]
[1759089677661,0.3968684,110410.0,110400.0,1.26841283]
[1759089680065,0.3968684,110410.0,110400.0,0.112068]
[1759089680259,0.3968684,110410.0,110400.0,0.929988]
[1759089680462,0.3968684,110410.0,110400.0,1.26841283]
[1759089682464,0.3968684,110410.0,110400.0,0.929988]
[1759089682663,0.3968684,110410.0,110400.0,1.26841283]
[1759089692072,0.05844357,110410.0,110400.0,1.26841283]
[1759089692278,0.39685543,110410.0,110400.0,1.26839986]
[1759089693870,0.05844357,110410.0,110400.0,1.26839986]
[1759089694877,0.05844357,110410.0,110400.0,1.62919986]
[1759089695565,0.05844357,110410.0,110400.0,1.26839986]
[1759089700878,0.05844357,110410.0,110400.0,1.62919986]
[1759089703177,0.05844357,110410.0,110400.0,1.26839986]
[1759089703378,0.39685543,110410.0,110400.0,1.26819986]
[1759089706882,0.39685543,110410.0,110400.0,0.45047986]
[1759089707076,0.39685543,110410.0,110400.0,1.26811986]
[1759089707479,0.39685543,110410.0,110400.0,0.929708]
[1759089718486,0.39685543,110410.0,110400.0,1.26811986]
[1759089718694,0.39685543,110410.0,110400.0,1.62891986]
[1759089723392,0.05844357,110410.0,110400.0,1.62891986]
[1759089723692,0.39685543,110410.0,110400.0,1.62891986]
[1759089725892,0.05844357,110410.0,110400.0,1.62891986]
[1759089729094,0.05844357,110410.0,110400.0,0.81127986]
[1759089729293,0.05844357,110410.0,110400.0,1.62867986]
[1759089729489,0.05844357,110410.0,110400.0,1.290268]
[1759089729989,0.39685543,110410.0,110400.0,1.290268]
[1759089732389,0.39685543,110410.0,110400.0,0.472868]
[1759089732595,0.39685543,110410.0,110400.0,1.290268]
[1759089733798,0.39685543,110410.0,110400.0,1.62867986]
[1759089734893,0.05844357,110410.0,110400.0,1.62867986]
[1759089752717,0.05844357,110410.0,110400.0,1.26787986]
[1759089752923,0.05844357,110410.0,110400.0,1.62867986]
[1759089754321,0.39685033,110410.0,110400.0,1.62867476]
[1759089762332,0.39685033,110410.0,110400.0,1.290268]
[1759089762629,0.39685033,110410.0,110400.0,1.62867476]
[1759089770841,0.39685033,110410.0,110400.0,0.81127476]
[1759089771041,0.39685033,110410.0,110400.0,1.62867476]
[1759089772234,0.37525676,110410.0,110400.0,1.62867476]
[1759089772441,0.39685936,110410.0,110400.0,1.62867476]
[1759089774942,0.39685936,110410.0,110400.0,1.26787476]
[1759089775144,0.39685936,110410.0,110400.0,1.62867476]
[1759089780339,0.39685936,110410.0,110400.0,1.62863476]
[1759089792153,0.84819916,110410.0,110400.0,1.26779476]
[1759089792550,0.84819916,110410.0,110400.0,0.45047476]
[1759089792857,0.84819916,110410.0,110400.0,1.26779476]
[1759089793257,0.5097924,110410.0,110400.0,1.26779476]
[1759089793558,0.84819916,110410.0,110400.0,1.26779476]
[1759089794961,0.84819916,110410.0,110400.0,0.45047476]
[1759089795459,0.84819916,110410.0,110400.0,1.26779476]
[1759089796466,0.75765936,110410.0,110400.0,0.45047476]
[1759089796665,0.75765936,110410.0,110400.0,1.26779476]
[1759089796862,0.84819916,110410.0,110400.0,1.26779476]
[1759089797060,0.84819916,110410.0,110400.0,0.929388]
[1759089797261,1.18661052,110410.0,110390.0,0.4513496]
[1759089797461,0.80185152,110400.0,110390.0,0.1138862]
[1759089797668,1.18425412,110400.0,110390.0,0.1138862]
[1759089797868,0.03658,110390.0,110380.0,0.9311784]
[1759089798070,0.39658936,110390.0,110380.0,0.9311784]
[1759089798262,0.0581826,110390.0,110380.0,0.9311784]
[1759089798462,0.39658936,110390.0,110380.0,0.9311784]
[1759089798668,0.39658936,110390.0,110380.0,0.1124584]
[1759089798865,0.39658936,110390.0,110380.0,0.9312984]
[1759089799263,0.37498676,110390.0,110380.0,0.1124584]
[1759089799468,0.37498676,110390.0,110380.0,0.9313384]
[1759089799671,0.37598676,110390.0,110380.0,0.9313384]
[1759089799972,0.73678676,110390.0,110380.0,0.9313384]
[1759089800670,0.73678676,110390.0,110380.0,0.1124584]
[1759089800870,0.82734296,110390.0,110380.0,0.1124584]
[1759089801371,1.56574972,110390.0,110380.0,0.0905584]
[1759089801763,1.58747147,110390.0,110380.0,0.0905584]
[1759089802170,2.38458972,110390.0,110380.0,0.0905584]
[1759089802365,1.56574972,110390.0,110380.0,0.0905584]
[1759089802670,2.4062655,110390.0,110380.0,0.0905584]
[1759089803166,0.1271444,110380.0,110370.0,0.1124673]
[1759089803372,0.1271526,110370.0,110360.0,0.9315173]
[1759089803571,0.82635936,110370.0,110360.0,0.9315173]
[1759089803769,0.83554264,110370.0,110360.0,0.9315173]
[1759089803970,0.83554264,110370.0,110360.0,1.26992406]
[1759089804369,0.74497004,110370.0,110360.0,1.26992406]
[1759089804773,0.81793893,110370.0,110360.0,1.26992406]
[1759089805173,0.81793893,110370.0,110360.0,1.27392406]
[1759089805375,0.81593893,110370.0,110360.0,1.27392406]
[1759089805675,0.80675565,110370.0,110360.0,1.27392406]
[1759089806371,0.80675565,110370.0,110360.0,1.27892406]
[1759089806570,0.81590442,110370.0,110360.0,1.27892406]
[1759089806873,0.81590442,110370.0,110360.0,0.9405173]
[1759089808575,0.81590442,110370.0,110360.0,1.27892406]
[1759089809876,0.81590442,110370.0,110360.0,0.9405173]
[1759089810077,0.74293553,110370.0,110360.0,0.9405173]
[1759089810877,0.83350813,110370.0,110360.0,0.9405173]
[1759089811278,0.49510137,110370.0,110360.0,0.1214773]
[1759089811482,0.83350813,110370.0,110360.0,0.9404773]
[1759089812379,0.74293553,110370.0,110360.0,0.9404773]
[1759089812577,0.74293553,110370.0,110360.0,1.27888406]
[1759089814079,0.81465827,110370.0,110360.0,0.1214773]
[1759089814280,0.81492632,110370.0,110360.0,0.9405173]
[1759089815181,0.90549892,110370.0,110360.0,0.9405173]
[1759089817683,0.90549892,110370.0,110360.0,0.1214773]
[1759089817979,0.90549892,110370.0,110360.0,0.9405173]
[1759089818781,0.56682411,110370.0,110360.0,0.9405173]
[1759089818982,0.90549892,110370.0,110360.0,0.9405173]
[1759089820784,0.81492632,110370.0,110360.0,0.9405173]
[1759089821086,0.11545151,110370.0,110360.0,0.9405173]
[1759089821990,0.45412632,110370.0,110360.0,0.9405173]
[1759089825186,0.11545151,110370.0,110360.0,0.9405173]
[1759089825388,0.45412632,110370.0,110360.0,0.9405173]
[1759089825685,0.43410088,110370.0,110360.0,1.3013173]
[1759089826480,0.44317469,110370.0,110360.0,1.3013173]
[1759089826681,0.43410088,110370.0,110360.0,1.3013173]
[1759089828587,0.43410088,110370.0,110360.0,0.4822773]
[1759089828789,0.43410088,110370.0,110360.0,1.3011173]
[1759089830381,0.09542607,110370.0,110360.0,1.63979211]
[1759089832285,0.11717149,110370.0,110360.0,1.63979211]
[1759089834885,0.09346816,110370.0,110360.0,1.63979211]
[1759089837089,0.09346816,110370.0,110360.0,0.82095211]
[1759089837294,0.11513816,110370.0,110360.0,1.63967211]
[1759089839496,0.11513816,110370.0,110360.0,1.64882808]
[1759089840401,0.11514616,110370.0,110360.0,1.64882808]
[1759089842098,0.12882616,110370.0,110360.0,1.64882808]
[1759089844701,0.10707274,110370.0,110360.0,1.64882808]
[1759089845601,0.07172274,110370.0,110360.0,1.31015327]
[1759089845809,0.02281522,110380.0,110370.0,0.1118126]
[1759089845810,0.03548,110380.0,110370.0,0.1118126]
[1759089846000,1.23676105,110390.0,110380.0,0.1118044]
[1759089846307,1.25851234,110390.0,110380.0,0.1118044]
[1759089846904,1.66814344,110390.0,110380.0,0.1118044]
[1759089847100,1.30734344,110390.0,110380.0,0.1118044]
[1759089847898,1.31825379,110390.0,110380.0,0.1118044]
[1759089848904,1.40880999,110390.0,110380.0,0.1118044]
[1759089849902,0.58908999,110390.0,110380.0,0.1118044]
[1759089850102,0.49853379,110390.0,110380.0,0.1118044]
[1759089855110,0.15985898,110390.0,110380.0,0.1118044]
[1759089855302,0.49853379,110390.0,110380.0,0.1118044]
[1759089861508,0.15985898,110390.0,110380.0,0.1118044]
[1759089863814,0.49853379,110390.0,110380.0,0.1118044]
[1759089866819,0.15985898,110390.0,110380.0,0.1118044]
[1759089867017,0.49853379,110390.0,110380.0,0.1118044]
[1759089876335,0.49839866,110390.0,110380.0,0.45034408]
[1759089877722,0.15985898,110390.0,110380.0,0.45034408]
[1759089877922,0.49839866,110390.0,110380.0,0.45034408]
[1759089898845,0.49839866,110390.0,110380.0,0.81114408]
[1759089910063,0.49839866,110390.0,110380.0,0.45034408]
[1759089911058,0.49839866,110390.0,110380.0,0.1118044]
[1759089914061,0.49837341,110390.0,110380.0,0.1118044]
[1759089924769,0.49837341,110390.0,110380.0,0.45034408]
[1759089933287,0.49837341,110390.0,110380.0,0.1118044]
[1759089933474,0.49837341,110390.0,110380.0,0.45034408]
[1759089933674,0.49837341,110390.0,110380.0,0.1118044]
[1759089936282,0.49839483,110390.0,110380.0,0.1118044]
[1759089937476,0.47763378,110390.0,110380.0,0.1118044]
[1759089948085,0.47761404,110390.0,110380.0,0.1118044]
[1759089951791,0.13905294,110390.0,110380.0,0.1118044]
[1759089952395,0.47761404,110390.0,110380.0,0.1118044]
[1759089963805,0.47761404,110390.0,110380.0,0.4726044]
[1759089966601,0.56816814,110390.0,110380.0,0.0905644]
[1759089966999,0.1248123,110380.0,110370.0,0.4732156]
[1759089967197,0.4850797,110380.0,110370.0,0.0905656]
[1759089967808,0.8458797,110380.0,110370.0,0.0905656]
[1759089968600,1.68652868,110380.0,110370.0,0.0925705]
[1759089968904,1.68652868,110380.0,110370.0,0.002]
[1759089969294,1.68652868,110380.0,110370.0,0.003]
[1759089978809,2.02508978,110380.0,110370.0,0.003]
[1759089979017,0.1255002,110370.0,110360.0,0.0905736]
[1759089979218,0.8248613,110370.0,110360.0,0.0905736]
[1759089980010,1.6441413,110370.0,110360.0,0.0905736]
[1759089980206,1.6441413,110370.0,110360.0,0.0925736]
[1759089980417,0.8248613,110370.0,110360.0,0.0925736]
[1759089980616,1.6441413,110370.0,110360.0,0.0945736]
[1759089982916,1.6441413,110370.0,110360.0,0.1168936]
[1759089983218,0.8248613,110370.0,110360.0,0.1168936]
[1759089983419,1.6441013,110370.0,110360.0,0.1168936]
[1759089983820,0.8248613,110370.0,110360.0,0.1168936]
[1759089984017,1.6440613,110370.0,110360.0,0.1168936]
[1759089985210,1.6440613,110370.0,110360.0,0.0945736]
[1759089987820,1.66589979,110370.0,110360.0,0.0945736]
[1759089992123,0.84669979,110370.0,110360.0,0.0945736]
[1759089992422,1.66589979,110370.0,110360.0,0.0945736]
[1759089993717,1.30509979,110370.0,110360.0,0.0945736]
[1759089993922,1.66589979,110370.0,110360.0,0.0945736]
[1759089995123,0.84669979,110370.0,110360.0,0.0945736]
[1759089995423,1.66577979,110370.0,110360.0,0.0945736]
[1759089997525,2.00434089,110370.0,110360.0,0.0945736]
[1759089997926,1.66577979,110370.0,110360.0,0.0945736]
[1759089998226,2.00466849,110370.0,110360.0,0.0945736]
[1759089998428,1.66594359,110370.0,110360.0,0.0945736]
[1759090000426,1.66594359,110370.0,110360.0,0.004]
[1759090000622,2.36546849,110370.0,110360.0,0.004]
[1759090001937,2.36946849,110370.0,110360.0,0.002]
[1759090002434,2.36946849,110370.0,110350.0,0.1811662]
[1759090002637,1.1637582,110360.0,110350.0,0.1128999]
[1759090002840,1.18559669,110360.0,110350.0,0.1128999]
[1759090004336,1.18759669,110360.0,110350.0,0.1128999]
[1759090005437,1.18762789,110360.0,110350.0,0.1128999]
[1759090005741,1.19162789,110360.0,110350.0,0.1128999]
[1759090006341,0.85290299,110360.0,110350.0,0.1128999]
[1759090007745,0.51417809,110360.0,110350.0,0.1128999]
[1759090007937,0.85290299,110360.0,110350.0,0.1128999]
[1759090010433,0.51417809,110360.0,110350.0,0.1128999]
[1759090010640,0.76232459,110360.0,110350.0,0.1128999]
[1759090011239,0.76232459,110360.0,110350.0,0.4516248]
[1759090014148,0.7404549,110360.0,110350.0,0.4516248]
[1759090027356,0.7623208,110360.0,110350.0,0.4516248]
[1759090030465,0.4015208,110360.0,110350.0,0.4516248]
[1759090030765,0.7623208,110360.0,110350.0,0.4516248]
[1759090054692,0.7623208,110360.0,110350.0,1.2698648]
[1759090055184,1.1010457,110360.0,110350.0,1.2698648]
[1759090055484,1.1010457,110360.0,110350.0,0.4516248]
[1759090055681,0.7623208,110360.0,110350.0,1.2698648]
[1759090058182,0.7623208,110360.0,110350.0,0.4516248]
[1759090058385,0.7623208,110360.0,110350.0,1.2698648]
[1759090058584,0.4235959,110360.0,110350.0,1.2698648]
[1759090058885,0.7623208,110360.0,110350.0,1.2698648]
[1759090059781,0.7623208,110360.0,110350.0,0.4516248]
[1759090059989,0.7623208,110360.0,110350.0,1.2698648]
[1759090060186,0.762325,110360.0,110350.0,0.9311399]
[1759090061291,0.762325,110360.0,110350.0,0.1128999]
[1759090061588,0.762325,110360.0,110350.0,0.9311399]
[1759090068494,0.76232941,110360.0,110350.0,0.9311399]
[1759090070494,1.27439781,110360.0,110350.0,0.0905799]
[1759090078108,2.09267781,110360.0,110350.0,0.0905799]
[1759090082512,1.75394871,110360.0,110350.0,0.1129899]
[1759090082705,2.09267781,110360.0,110350.0,0.1129899]
[1759090083516,1.27439781,110360.0,110350.0,0.1129899]
[1759090083715,2.09267781,110360.0,110350.0,0.1129899]
[1759090087222,2.09267781,110360.0,110350.0,0.0905799]
[1759090087924,2.09267781,110360.0,110350.0,0.1129899]
[1759090093430,2.09267781,110360.0,110350.0,0.0905799]
[1759090094129,1.75394871,110360.0,110350.0,0.0905799]
[1759090094329,2.09267781,110360.0,110350.0,0.0905799]
[1759090094633,2.00209941,110360.0,110350.0,0.0905799]
[1759090094831,2.09267781,110360.0,110350.0,0.0905799]
[1759090099435,1.73187781,110360.0,110350.0,0.0905799]
[1759090106442,2.09267781,110360.0,110350.0,0.0905799]
[1759090108644,2.07118781,110360.0,110350.0,0.0905799]
[1759090116344,1.67118781,110360.0,110350.0,0.0905799]
[1759090118950,0.76232941,110360.0,110350.0,0.0905799]
[1759090119153,1.58444941,110360.0,110350.0,0.1133999]
[1759090119847,0.42360031,110360.0,110350.0,0.1133999]
[1759090120047,0.88564031,110360.0,110350.0,0.1133999]
[1759090120352,1.22433719,110360.0,110350.0,0.45209678]
[1759090121354,0.88564031,110360.0,110350.0,0.1133999]
[1759090121656,1.22433719,110360.0,110350.0,0.45209678]
[1759090127651,1.22433719,110360.0,110350.0,0.1133999]
[1759090127956,0.40149719,110360.0,110350.0,0.45209678]
[1759090128146,1.22453719,110360.0,110350.0,0.45209678]
[1759090130761,0.40149719,110360.0,110350.0,0.45209678]
[1759090130961,1.22445719,110360.0,110350.0,0.81289678]
[1759090136560,0.06280031,110360.0,110350.0,0.81289678]
[1759090136769,0.40149719,110360.0,110350.0,0.81289678]
[1759090138666,0.40149719,110360.0,110350.0,1.63549678]
[1759090139464,0.40149719,110360.0,110350.0,1.63533678]
[1759090150278,0.06280031,110360.0,110350.0,1.63533678]
[1759090150473,0.40149719,110360.0,110350.0,1.63533678]
[1759090152177,0.06280031,110360.0,110350.0,1.63533678]
[1759090152377,0.40149719,110360.0,110350.0,1.63533678]
[1759090154774,0.04913031,110360.0,110350.0,2.38691366]
[1759090155082,0.05735838,110380.0,110370.0,0.1134003]
[1759090155279,0.07927655,110380.0,110370.0,1.27401718]
[1759090155777,0.07927655,110380.0,110370.0,2.03481718]
[1759090155973,0.04330655,110380.0,110370.0,2.38126406]
[1759090156181,0.02538838,110380.0,110370.0,2.38126406]
[1759090156371,0.02538838,110380.0,110370.0,2.39036644]
[1759090156571,0.02738838,110380.0,110370.0,2.39036644]
[1759090156776,0.006,110380.0,110370.0,2.39036644]
[1759090161587,0.02128,110390.0,110380.0,0.1131407]
[1759090161792,0.02128,110390.0,110380.0,1.97369446]